bitfinex-derivatives/quotes_ETHF0:USTF0_20260117
["timestamp","ask_amount","ask_price","bid_price","bid_amount"]
[1768634839024,0.92498072,3293.9,3292.4,0.00264916]
[1768634839221,0.13678981,3294.0,3292.4,0.00264916]
[1768634839533,0.9248993,3293.9,3292.4,0.00264916]
[1768634839734,0.9248993,3293.8,3292.4,0.00264916]
[1768634839922,0.13678981,3294.0,3292.4,0.00264916]
[1768634840122,0.92490228,3293.9,3292.4,0.13835953]
[1768634840327,0.13678981,3294.0,3292.4,0.13835953]
[1768634840626,0.92265095,3293.9,3292.4,0.13835953]
[1768634840830,0.13678981,3294.0,3292.4,0.13835953]
[1768634841027,0.92265095,3293.9,3292.4,0.13835953]
[1768634841328,0.13678981,3294.0,3292.4,0.13835953]
[1768634841528,0.92256,3293.9,3292.4,0.13835953]
[1768634841729,0.13678981,3294.0,3292.4,0.13835953]
[1768634841929,0.92256,3293.9,3292.4,0.13835953]
[1768634842133,0.13678981,3294.0,3292.4,0.13835953]
[1768634842335,0.92256,3293.9,3292.4,0.13835953]
[1768634842632,0.13678981,3294.0,3292.4,0.13835953]
[1768634842834,0.92249184,3293.9,3292.4,0.13835953]
[1768634843032,0.13678981,3294.0,3292.4,0.13835953]
[1768634843236,0.92249184,3293.9,3292.4,0.13835953]
[1768634843436,0.13678981,3294.0,3292.4,0.13835953]
[1768634843636,0.92243394,3293.9,3292.4,0.13835953]
[1768634843934,0.13678981,3294.0,3292.4,0.13835953]
[1768634844136,0.92243371,3293.9,3292.4,0.13835953]
[1768634844335,0.13678981,3294.0,3292.4,0.13835953]
[1768634844538,0.92238264,3293.9,3292.4,0.13835953]
[1768634844733,0.13678981,3294.0,3292.4,0.13835953]
[1768634844933,0.92238264,3293.9,3292.4,0.13835953]
[1768634845234,0.13678981,3294.0,3292.4,0.13835953]
[1768634845426,0.92233808,3293.9,3292.4,0.13835953]
[1768634845628,0.13678981,3294.0,3292.4,0.13835953]
[1768634845840,0.92233808,3293.9,3292.4,0.13835953]
[1768634846138,0.13678981,3294.0,3292.4,0.13835953]
[1768634846327,0.92232279,3293.9,3292.4,0.13835953]
[1768634846530,0.13678981,3294.0,3292.4,0.13835953]
[1768634846734,0.92229916,3293.9,3292.4,0.13835953]
[1768634846935,0.13678981,3294.0,3292.4,0.13835953]
[1768634847136,0.92229916,3293.9,3292.4,0.13835953]
[1768634847331,0.13678981,3294.0,3292.4,0.13835953]
[1768634847536,0.92227029,3293.9,3292.4,0.13835953]
[1768634847736,0.13678981,3294.0,3292.4,0.13835953]
[1768634847941,0.92227029,3293.9,3292.4,0.13835953]
[1768634848143,0.13678981,3294.0,3292.4,0.13835953]
[1768634848331,0.92225269,3293.9,3292.4,0.13835953]
[1768634848531,0.13678981,3294.0,3292.4,0.13835953]
[1768634848741,0.92225272,3293.9,3292.4,0.13835953]
[1768634848940,0.13678981,3294.0,3292.4,0.13835953]
[1768634849142,0.92225272,3293.9,3292.4,0.13835953]
[1768634849343,0.13678981,3294.0,3292.4,0.13835953]
[1768634849641,0.92223413,3293.9,3292.4,0.13835953]
[1768634849836,0.13678981,3294.0,3292.4,0.13835953]
[1768634850136,0.92223413,3293.9,3292.4,0.13835953]
[1768634850333,0.13678981,3294.0,3292.4,0.13835953]
[1768634850534,0.92222724,3293.9,3292.4,0.13835953]
[1768634850734,0.13678981,3294.0,3292.4,0.13835953]
[1768634850935,0.92222724,3293.9,3292.4,0.13835953]
[1768634851135,0.13678981,3294.0,3292.4,0.13835953]
[1768634851336,0.92221348,3293.9,3292.4,0.13835953]
[1768634851634,0.13678981,3294.0,3292.4,0.13835953]
[1768634851834,0.92221256,3293.9,3292.4,0.13835953]
[1768634852035,0.13678981,3294.0,3292.4,0.13835953]
[1768634852235,0.9222126,3293.9,3292.4,0.13835953]
[1768634852434,0.13678981,3294.0,3292.4,0.13835953]
[1768634852642,0.92220494,3293.9,3292.4,0.13835953]
[1768634852841,0.13678981,3294.0,3292.4,0.13835953]
[1768634853136,0.92220682,3293.9,3292.4,0.13835953]
[1768634853340,0.98440756,3293.9,3292.5,0.98440756]
[1768634868268,0.92315961,3293.8,3292.5,0.98440756]
[1768634868469,0.98440756,3293.9,3292.5,0.98440756]
[1768634868766,0.92316042,3293.8,3292.5,0.98440756]
[1768634869069,0.98440756,3293.9,3292.5,0.98440756]
[1768634869368,0.92316123,3293.8,3292.5,0.98440756]
[1768634869567,0.98440756,3293.9,3292.5,0.98440756]
[1768634869766,0.92317655,3293.8,3292.5,0.98440756]
[1768634869968,0.98440756,3293.9,3292.5,0.98440756]
[1768634870169,0.92317655,3293.8,3292.5,0.98440756]
[1768634870359,0.98440756,3293.9,3292.5,0.98440756]
[1768634870560,0.92385816,3293.8,3292.5,0.98440756]
[1768634870762,0.98440756,3293.9,3292.5,0.98440756]
[1768634870962,0.92385978,3293.8,3292.5,0.98440756]
[1768634871158,0.98440756,3293.9,3292.5,0.98440756]
[1768634871361,0.92387153,3293.8,3292.5,0.98440756]
[1768634871558,0.98440756,3293.9,3292.5,0.98440756]
[1768634871764,0.92386948,3293.8,3292.5,0.98440756]
[1768634871965,0.98440756,3293.9,3292.5,0.98440756]
[1768634872167,0.92386948,3293.8,3292.5,0.98440756]
[1768634872366,0.98440756,3293.9,3292.5,0.98440756]
[1768634872569,0.9238884,3293.8,3292.5,0.98440756]
[1768634872768,0.98440756,3293.9,3292.5,0.98440756]
[1768634873068,0.92388921,3293.8,3292.5,0.98440756]
[1768634873270,0.98440756,3293.9,3292.5,0.98440756]
[1768634873469,0.92388723,3293.8,3292.5,0.98440756]
[1768634873676,0.98440756,3293.9,3292.5,0.98440756]
[1768634873866,0.92388723,3293.8,3292.5,0.98440756]
[1768634874068,0.98440756,3293.9,3292.5,0.98440756]
[1768634874366,0.92388493,3293.8,3292.5,0.98440756]
[1768634874567,0.98440756,3293.9,3292.5,0.98440756]
[1768634874767,0.92388987,3293.8,3292.5,0.98440756]
[1768634874969,0.98440756,3293.9,3292.5,0.98440756]
[1768634875169,0.92388857,3293.8,3292.5,0.98440756]
[1768634875369,0.98440756,3293.9,3292.5,0.98440756]
[1768634875569,0.92388864,3293.8,3292.5,0.98440756]
[1768634875781,0.98440756,3293.9,3292.5,0.98440756]
[1768634875977,0.92388865,3293.8,3292.5,0.98440756]
[1768634876178,0.98440756,3293.9,3292.5,0.98440756]
[1768634876381,0.92388893,3293.8,3292.5,0.98440756]
[1768634876575,0.98440756,3293.9,3292.4,0.13835953]
[1768634876776,0.92388722,3293.8,3292.5,0.98440756]
[1768634877075,0.98440756,3293.9,3292.5,0.98440756]
[1768634877276,0.92388723,3293.8,3292.5,0.98440756]
[1768634877476,0.98440756,3293.9,3292.5,0.98440756]
[1768634877676,0.92388738,3293.8,3292.5,0.98440756]
[1768634877876,0.98440756,3293.9,3292.5,0.98440756]
[1768634878076,0.92388732,3293.8,3292.5,0.98440756]
[1768634878279,0.98440756,3293.9,3292.5,0.98440756]
[1768634878479,0.92388744,3293.8,3292.5,0.98440756]
[1768634878683,0.98440756,3293.9,3292.5,0.98440756]
[1768634878883,0.92388749,3293.8,3292.5,0.98440756]
[1768634879084,0.98440756,3293.9,3292.5,0.98440756]
[1768634879278,0.92388744,3293.8,3292.5,0.98440756]
[1768634879478,0.98440756,3293.9,3292.5,0.98440756]
[1768634879680,0.9238876,3293.8,3292.5,0.98440756]
[1768634879880,0.98440756,3293.9,3292.5,0.98440756]
[1768634880179,0.92388754,3293.8,3292.5,0.98440756]
[1768634880379,0.98440756,3293.9,3292.5,0.98440756]
[1768634880579,0.92388763,3293.8,3292.5,0.98440756]
[1768634880783,0.98440756,3293.9,3292.5,0.98440756]
[1768634880979,0.92388848,3293.8,3292.5,0.98440756]
[1768634881179,0.98440756,3293.9,3292.5,0.98440756]
[1768634881386,0.92389303,3293.8,3292.5,0.98440756]
[1768634881583,0.98440756,3293.9,3292.5,0.98440756]
[1768634881783,0.92389305,3293.8,3292.5,0.98440756]
[1768634881979,0.98440756,3293.9,3292.5,0.98440756]
[1768634882179,0.92389299,3293.8,3292.5,0.98440756]
[1768634882379,0.98440756,3293.9,3292.5,0.98440756]
[1768634882579,0.92389282,3293.8,3292.5,0.98440756]
[1768634882778,0.98440756,3293.9,3292.5,0.98440756]
[1768634882980,0.9238928,3293.8,3292.5,0.98440756]
[1768634883282,0.98440756,3293.6,3292.4,0.13835953]
[1768634883483,0.98440756,3293.3,3292.4,0.00264916]
[1768634886191,1.11858396,3293.6,3292.4,0.00264916]
[1768634888292,0.98440756,3293.7,3292.4,0.98705672]
[1768634897200,0.2860264,3293.9,3292.4,0.98705672]
[1768634897400,0.98440756,3293.7,3292.4,0.98705672]
[1768634904100,6.397,3294.1,3292.7,0.98440756]
[1768634904316,0.92349849,3294.0,3292.8,0.98440756]
[1768634904602,0.92349849,3293.9,3292.8,0.98440756]
[1768634904801,0.92349849,3293.8,3292.8,0.98440756]
[1768634905003,6.397,3294.1,3292.8,0.98440756]
[1768634905306,0.92358524,3294.0,3292.8,0.98440756]
[1768634905506,0.92358524,3293.9,3292.8,0.98440756]
[1768634905713,0.92358524,3293.8,3292.8,0.98440756]
[1768634905909,6.397,3294.1,3292.8,0.98440756]
[1768634906110,0.92362588,3294.0,3292.8,0.98440756]
[1768634906311,0.92362588,3293.9,3292.8,0.98440756]
[1768634906513,0.92362588,3293.8,3292.8,0.98440756]
[1768634906718,6.397,3294.1,3292.8,0.98440756]
[1768634907017,0.9236602,3294.0,3292.8,0.98440756]
[1768634907216,0.9236602,3293.9,3292.8,0.98440756]
[1768634907417,0.9236602,3293.8,3292.8,0.98440756]
[1768634907609,6.397,3294.1,3292.8,0.98440756]
[1768634907810,0.92369739,3294.0,3292.8,0.98440756]
[1768634908012,0.92369739,3293.9,3292.8,0.98440756]
[1768634908210,0.92369739,3293.8,3292.8,0.98440756]
[1768634908511,6.397,3294.1,3292.8,0.98440756]
[1768634908711,0.92373433,3294.0,3292.8,0.98440756]
[1768634909010,0.92373433,3293.9,3292.8,0.98440756]
[1768634909305,0.92373433,3293.8,3292.8,0.98440756]
[1768634909509,6.397,3294.1,3292.8,0.98440756]
[1768634909709,0.92377399,3294.0,3292.8,0.98440756]
[1768634909910,0.92377399,3293.9,3292.8,0.98440756]
[1768634910110,0.92377399,3293.8,3292.8,0.98440756]
[1768634910404,6.397,3294.1,3292.8,0.98440756]
[1768634910610,0.92376672,3294.0,3292.8,0.98440756]
[1768634910808,0.92376672,3293.9,3292.8,0.98440756]
[1768634911010,6.397,3294.1,3292.8,0.98440756]
[1768634911212,0.9239208,3294.0,3292.8,0.98440756]
[1768634911414,0.9239208,3293.9,3292.8,0.98440756]
[1768634911710,6.397,3294.1,3292.8,0.98440756]
[1768634911910,0.92397756,3294.0,3292.8,0.98440756]
[1768634912106,0.9240073,3293.9,3292.8,0.98440756]
[1768634912310,0.98440756,3294.0,3292.8,0.98440756]
[1768634912510,0.9240055,3293.9,3292.8,0.98440756]
[1768634912718,0.98440756,3294.0,3292.8,0.98440756]
[1768634912917,0.92402216,3293.9,3292.8,0.98440756]
[1768634913108,0.98440756,3294.0,3292.8,0.98440756]
[1768634913313,0.92404266,3293.9,3292.4,0.1439421]
[1768634913617,6.397,3294.1,3292.4,0.1439421]
[1768634913820,0.92403846,3294.0,3292.4,0.1439421]
[1768634914016,0.92403846,3293.9,3292.4,0.1439421]
[1768634914215,6.397,3294.1,3292.4,0.1439421]
[1768634914416,0.92399594,3294.0,3292.4,0.1439421]
[1768634914616,0.92399594,3293.9,3292.4,0.1439421]
[1768634914816,6.397,3294.1,3292.4,0.1439421]
[1768634915013,0.92399615,3294.0,3292.4,0.1439421]
[1768634915213,0.92399615,3293.9,3292.4,0.1439421]
[1768634915413,6.397,3294.1,3292.4,0.1439421]
[1768634915620,0.92396224,3294.0,3292.4,0.1439421]
[1768634915815,0.92396224,3293.9,3292.4,0.1439421]
[1768634916017,6.397,3294.1,3292.4,0.1439421]
[1768634916217,0.9239656,3294.0,3292.4,0.1439421]
[1768634916519,0.9239656,3293.9,3292.4,0.1439421]
[1768634916722,6.397,3294.1,3292.4,0.1439421]
[1768634916917,0.92394488,3294.0,3292.4,0.1439421]
[1768634917113,0.92394488,3293.9,3292.4,0.1439421]
[1768634917314,6.397,3294.1,3292.4,0.1439421]
[1768634917514,0.92391804,3294.0,3292.4,0.1439421]
[1768634917714,0.92391804,3293.9,3292.4,0.1439421]
[1768634917914,6.397,3294.1,3292.4,0.1439421]
[1768634918123,0.92391738,3294.0,3292.4,0.1439421]
[1768634918315,0.92391738,3293.9,3292.4,0.1439421]
[1768634918510,8.098,3294.1,3292.5,0.13451531]
[1768634918715,0.92393391,3294.0,3292.5,0.13451531]
[1768634918920,8.098,3294.1,3292.5,0.13451531]
[1768634919118,0.92393502,3294.0,3292.5,0.13451531]
[1768634919323,8.098,3294.1,3292.5,0.13451531]
[1768634919520,0.92388656,3294.0,3292.5,0.13451531]
[1768634919722,8.098,3294.1,3292.5,0.13451531]
[1768634919923,0.92388653,3294.0,3292.5,0.13451531]
[1768634920111,8.098,3294.1,3292.5,0.13451531]
[1768634920316,0.92388661,3294.0,3292.5,0.13451531]
[1768634920523,8.098,3294.1,3292.5,0.13451531]
[1768634920828,0.92385031,3294.0,3292.5,0.13451531]
[1768634921127,8.098,3294.1,3292.5,0.13451531]
[1768634921316,0.92385239,3294.0,3292.5,0.13451531]
[1768634921517,8.098,3294.1,3292.5,0.13451531]
[1768634921717,0.92382888,3294.0,3292.5,0.13451531]
[1768634921918,8.098,3294.1,3292.5,0.13451531]
[1768634922118,0.92382885,3294.0,3292.5,0.13451531]
[1768634922318,8.098,3294.1,3292.5,0.13451531]
[1768634922526,0.92381315,3294.0,3292.5,0.13451531]
[1768634922826,8.098,3294.1,3292.5,0.13451531]
[1768634923028,0.92381309,3294.0,3292.5,0.13451531]
[1768634923213,1.701,3294.1,3292.5,0.13451531]
[1768634923419,0.92380523,3294.0,3292.5,0.13451531]
[1768634923620,1.701,3294.1,3292.5,0.13451531]
[1768634923828,0.92380534,3294.0,3292.5,0.13451531]
[1768634924028,1.701,3294.1,3292.5,0.13451531]
[1768634924228,0.9238062,3294.0,3292.5,0.13451531]
[1768634924426,1.701,3294.1,3292.5,0.13451531]
[1768634924729,0.92380694,3294.0,3292.5,0.13451531]
[1768634924929,1.701,3294.1,3292.5,0.13451531]
[1768634925130,0.92380657,3294.0,3292.5,0.13451531]
[1768634925330,1.701,3294.1,3292.5,0.13451531]
[1768634925526,0.92381826,3294.0,3292.5,0.13451531]
[1768634925732,1.701,3294.1,3292.5,0.13451531]
[1768634925935,0.92381716,3294.0,3292.5,0.13451531]
[1768634926230,1.701,3294.1,3292.5,0.13451531]
[1768634926532,0.92383628,3294.0,3292.5,0.13451531]
[1768634926830,1.701,3294.1,3292.5,0.13451531]
[1768634927030,0.92383618,3294.0,3292.5,0.13451531]
[1768634927232,1.701,3294.1,3292.5,0.13451531]
[1768634927528,0.92386526,3294.0,3292.5,0.13451531]
[1768634927830,1.701,3294.1,3292.5,0.13451531]
[1768634928021,0.9238653,3294.0,3292.5,0.13451531]
[1768634928320,1.701,3294.1,3292.5,0.13451531]
[1768634928522,0.92390425,3294.0,3292.5,0.13451531]
[1768634928731,1.701,3294.1,3292.5,0.13451531]
[1768634929029,0.92390436,3294.0,3292.5,0.13451531]
[1768634929216,1.701,3294.1,3292.5,0.13451531]
[1768634929418,0.92395491,3294.0,3292.5,0.13451531]
[1768634929624,1.701,3294.1,3292.5,0.13451531]
[1768634929824,0.92395934,3294.0,3292.5,0.13451531]
[1768634930024,1.701,3294.1,3292.5,0.13451531]
[1768634930218,0.9239592,3294.0,3292.5,0.13451531]
[1768634930420,1.701,3294.1,3292.5,0.13451531]
[1768634930621,0.9240428,3294.0,3292.5,0.13451531]
[1768634930930,1.701,3294.1,3292.5,0.13451531]
[1768634931231,0.92404265,3294.0,3292.5,0.13451531]
[1768634931428,1.701,3294.1,3292.5,0.13451531]
[1768634931631,0.92409482,3294.0,3292.5,0.13451531]
[1768634931823,1.701,3294.1,3292.5,0.13451531]
[1768634932022,0.92409482,3294.0,3292.5,0.13451531]
[1768634932329,1.701,3294.1,3292.5,0.13451531]
[1768634932534,0.92417945,3294.0,3292.5,0.13451531]
[1768634932830,1.701,3294.1,3292.5,0.13451531]
[1768634933026,0.92417945,3294.0,3292.5,0.13451531]
[1768634933232,1.701,3294.1,3292.5,0.13451531]
[1768634933425,0.92429312,3294.0,3292.5,0.13451531]
[1768634933732,1.701,3294.1,3292.5,0.13451531]
[1768634934030,0.92429298,3294.0,3292.5,0.13451531]
[1768634934329,1.701,3294.1,3292.5,0.13451531]
[1768634934530,0.92433588,3294.0,3292.5,0.13451531]
[1768634934732,1.701,3294.1,3292.5,0.13451531]
[1768634934932,0.92433588,3294.0,3292.5,0.13451531]
[1768634935131,1.701,3294.1,3292.5,0.13451531]
[1768634935434,0.92433588,3294.0,3292.5,0.13451531]
[1768634935732,1.701,3294.1,3292.5,0.13451531]
[1768634935931,0.92437011,3294.0,3292.5,0.13451531]
[1768634936133,1.701,3294.1,3292.5,0.13451531]
[1768634936334,0.92437011,3294.0,3292.5,0.13451531]
[1768634936534,1.701,3294.1,3292.5,0.13451531]
[1768634936730,0.92439258,3294.0,3292.5,0.13451531]
[1768634936928,1.83227357,3294.1,3292.5,0.13451531]
[1768634937125,0.92439258,3294.0,3292.5,0.13451531]
[1768634937326,1.83227357,3294.1,3292.5,0.13451531]
[1768634937625,0.9244222,3294.0,3292.5,0.13451531]
[1768634937824,1.83227357,3294.1,3292.5,0.13451531]
[1768634938025,0.9244222,3294.0,3292.5,0.13451531]
[1768634938232,1.83227357,3294.1,3292.5,0.13451531]
[1768634938425,0.92446031,3294.0,3292.5,0.13451531]
[1768634938625,1.83227357,3294.1,3292.5,0.13451531]
[1768634938927,0.92446031,3294.0,3292.5,0.13451531]
[1768634939125,1.83227357,3294.1,3292.5,0.13451531]
[1768634939325,0.92446031,3294.0,3292.5,0.13451531]
[1768634939533,1.83227357,3294.1,3292.5,0.13451531]
[1768634939731,0.92450921,3294.0,3292.5,0.13451531]
[1768634939933,1.83227357,3294.1,3292.5,0.13451531]
[1768634940232,0.92450921,3294.0,3292.5,0.13451531]
[1768634940432,1.83227357,3294.1,3292.5,0.13451531]
[1768634940633,0.92457553,3294.0,3292.5,0.13451531]
[1768634940833,1.83227357,3294.1,3292.5,0.13451531]
[1768634941035,0.92457553,3294.0,3292.5,0.13451531]
[1768634941237,1.83227357,3294.1,3292.5,0.13451531]
[1768634941534,0.92458595,3294.0,3292.5,0.13451531]
[1768634941734,1.83227357,3294.1,3292.5,0.13451531]
[1768634941936,0.92458595,3294.0,3292.5,0.13451531]
[1768634942135,1.83227357,3294.1,3292.5,0.13451531]
[1768634942340,0.92458621,3294.0,3292.5,0.13451531]
[1768634942638,1.83227357,3294.1,3292.5,0.13451531]
[1768634942839,0.92459822,3294.0,3292.5,0.13451531]
[1768634943134,1.83227357,3294.1,3292.5,0.13451531]
[1768634943339,0.9245991,3294.0,3292.5,0.13451531]
[1768634943533,1.83227357,3294.1,3292.5,0.13451531]
[1768634943734,0.92461418,3294.0,3292.5,0.13451531]
[1768634943934,1.83227357,3294.1,3292.5,0.13451531]
[1768634944141,0.92461419,3294.0,3292.5,0.13451531]
[1768634944339,1.83227357,3294.1,3292.5,0.13451531]
[1768634944640,0.92463332,3294.0,3292.5,0.13451531]
[1768634944941,1.83227357,3294.1,3292.5,0.13451531]
[1768634945131,0.92463315,3294.0,3292.5,0.13451531]
[1768634945332,1.83227357,3294.1,3292.5,0.13451531]
[1768634945632,0.9246607,3294.0,3292.5,0.13451531]
[1768634945831,1.83227357,3294.1,3292.5,0.13451531]
[1768634946037,0.9246607,3294.0,3292.5,0.13451531]
[1768634946237,1.83227357,3294.1,3292.5,0.13451531]
[1768634946439,0.92469591,3294.0,3292.5,0.13451531]
[1768634946639,1.83227357,3294.1,3292.5,0.13451531]
[1768634946831,0.92469591,3294.0,3292.5,0.13451531]
[1768634947032,1.83227357,3294.1,3292.5,0.13451531]
[1768634947242,0.92469591,3294.0,3292.5,0.13451531]
[1768634947541,1.83227357,3294.1,3292.5,0.13451531]
[1768634947738,0.92473445,3294.0,3292.5,0.13451531]
[1768634947941,1.83227357,3294.1,3292.5,0.13451531]
[1768634948142,0.92473445,3294.0,3292.5,0.13451531]
[1768634948338,0.92478903,3293.9,3292.5,0.13451531]
[1768634948539,1.83227357,3294.1,3292.5,0.13451531]
[1768634948734,0.92478903,3294.0,3292.5,0.13451531]
[1768634948936,0.92478903,3293.9,3292.5,0.13451531]
[1768634949137,0.13127357,3294.1,3292.5,0.13451531]
[1768634949334,0.92478964,3294.0,3292.5,0.13451531]
[1768634949534,0.92478964,3293.9,3292.5,0.13451531]
[1768634949735,0.13127357,3294.1,3292.5,0.13451531]
[1768634949935,0.9247892,3294.0,3292.5,0.13451531]
[1768634950143,0.9247892,3293.9,3292.5,0.13451531]
[1768634950344,0.13127357,3294.1,3292.5,0.13451531]
[1768634950545,0.92479055,3294.0,3292.5,0.13451531]
[1768634950841,0.92479055,3293.9,3292.5,0.13451531]
[1768634951044,0.13127357,3294.1,3292.5,0.13451531]
[1768634951240,0.9247917,3294.0,3292.5,0.13451531]
[1768634951541,0.9247917,3293.9,3292.5,0.13451531]
[1768634951742,0.13127357,3294.1,3292.5,0.13451531]
[1768634951937,0.92479249,3294.0,3292.5,0.13451531]
[1768634952137,0.92479249,3293.9,3292.5,0.13451531]
[1768634952336,0.13127357,3294.1,3292.5,0.13451531]
[1768634952543,0.92479506,3294.0,3292.5,0.13451531]
[1768634952744,0.13127357,3294.1,3292.5,0.13451531]
[1768634952745,0.92479506,3293.9,3292.5,0.13451531]
[1768634952945,0.13127357,3294.1,3292.5,0.13451531]
[1768634953145,0.92479506,3294.0,3292.5,0.13451531]
[1768634953347,0.13127357,3294.1,3292.5,0.13451531]
[1768634953543,0.92479782,3294.0,3292.5,0.13451531]
[1768634953743,0.13127357,3294.1,3292.5,0.13451531]
[1768634953944,0.92476812,3294.0,3292.5,0.13451531]
[1768634954243,0.13127357,3294.1,3292.5,0.13451531]
[1768634954440,0.92475803,3294.0,3292.5,0.13451531]
[1768634954642,0.13127357,3294.1,3292.5,0.13451531]
[1768634954842,0.92475803,3294.0,3292.5,0.13451531]
[1768634955045,0.13127357,3294.1,3292.5,0.13451531]
[1768634955240,0.92476369,3294.0,3292.5,0.13451531]
[1768634955435,0.13127357,3294.1,3292.5,0.13451531]
[1768634955638,0.92476412,3294.0,3292.5,0.13451531]
[1768634955849,0.13127357,3294.1,3292.5,0.13451531]
[1768634956049,0.92476412,3294.0,3292.5,0.13451531]
[1768634956345,0.13127357,3294.1,3292.5,0.13451531]
[1768634956549,0.92476787,3294.0,3292.5,0.13451531]
[1768634956748,0.13127357,3294.1,3292.5,0.13451531]
[1768634956947,0.92476788,3294.0,3292.5,0.13451531]
[1768634957148,0.13127357,3294.1,3292.5,0.13451531]
[1768634957349,0.92476636,3294.0,3292.5,0.13451531]
[1768634957550,0.13127357,3294.1,3292.5,0.13451531]
[1768634957750,0.92477374,3294.0,3292.5,0.13451531]
[1768634958049,0.13127357,3294.1,3292.5,0.13451531]
[1768634958240,0.92477374,3294.0,3292.5,0.13451531]
[1768634958442,0.13127357,3294.1,3292.5,0.13451531]
[1768634958742,0.92478185,3294.0,3292.5,0.13451531]
[1768634958943,0.13127357,3294.1,3292.5,0.13451531]
[1768634959143,0.92478185,3294.0,3292.5,0.13451531]
[1768634959443,0.13127357,3294.1,3292.5,0.13451531]
[1768634959643,0.92478692,3294.0,3292.5,0.13451531]
[1768634959848,0.13127357,3294.1,3292.5,0.13451531]
[1768634960049,0.92478692,3294.0,3292.5,0.13451531]
[1768634960250,0.13127357,3294.1,3292.5,0.13451531]
[1768634960449,0.924796,3294.0,3292.5,0.13451531]
[1768634960751,0.13127357,3294.1,3292.5,0.13451531]
[1768634960947,0.92531697,3294.0,3292.5,0.13451531]
[1768634961148,0.13127357,3294.1,3292.5,0.13451531]
[1768634961347,0.92531268,3294.0,3292.5,0.13451531]
[1768634961544,0.13127357,3294.1,3292.5,0.13451531]
[1768634961745,0.92532748,3294.0,3292.5,0.13451531]
[1768634962044,0.13127357,3294.1,3292.5,0.13451531]
[1768634962239,0.92532748,3294.0,3292.5,0.13451531]
[1768634962445,0.13127357,3294.1,3292.5,0.13451531]
[1768634962742,0.92532215,3294.0,3292.5,0.13451531]
[1768634963040,0.13127357,3294.1,3292.5,0.13451531]
[1768634963242,0.92532215,3294.0,3292.5,0.13451531]
[1768634963438,0.13127357,3294.1,3292.5,0.13451531]
[1768634963652,0.9253186,3294.0,3292.5,0.13451531]
[1768634963853,0.13127357,3294.1,3292.5,0.13451531]
[1768634964052,0.92531873,3294.0,3292.5,0.13451531]
[1768634964253,0.13127357,3294.1,3292.5,0.13451531]
[1768634964443,0.92531652,3294.0,3292.5,0.13451531]
[1768634964646,0.13127357,3294.1,3292.5,0.13451531]
[1768634964850,0.92531652,3294.0,3292.5,0.13451531]
[1768634965050,0.13127357,3294.1,3292.5,0.13451531]
[1768634965251,0.92531652,3294.0,3292.5,0.13451531]
[1768634965450,0.13127357,3294.1,3292.5,0.13451531]
[1768634965651,0.92531502,3294.0,3292.5,0.13451531]
[1768634965854,0.14124154,3293.9,3292.4,0.15455916]
[1768634975364,0.14124154,3293.9,3292.6,0.98431551]
[1768634991587,0.98431551,3294.0,3292.6,0.98431551]
[1768634991883,0.92500822,3293.9,3292.6,0.98431551]
[1768634992084,0.98431551,3294.0,3292.6,0.98431551]
[1768634992274,0.92501309,3293.9,3292.6,0.98431551]
[1768634992475,0.98431551,3294.0,3292.6,0.98431551]
[1768634992677,0.92501309,3293.9,3292.6,0.98431551]
[1768634992976,0.98431551,3294.0,3292.6,0.98431551]
[1768634993277,0.92501309,3293.9,3292.6,0.98431551]
[1768634993476,0.98431551,3294.0,3292.6,0.98431551]
[1768634993691,0.92501762,3293.9,3292.6,0.98431551]
[1768634993984,0.98431551,3294.0,3292.6,0.98431551]
[1768634994193,0.92501762,3293.9,3292.6,0.98431551]
[1768634994376,0.98431551,3294.0,3292.6,0.98431551]
[1768634994576,0.92502163,3293.9,3292.6,0.98431551]
[1768634994788,0.98431551,3294.0,3292.6,0.98431551]
[1768634994986,0.92502163,3293.9,3292.6,0.98431551]
[1768634995190,0.98431551,3294.0,3292.6,0.98431551]
[1768634995395,0.9250274,3293.9,3292.6,0.98431551]
[1768634995583,0.98431551,3294.0,3292.6,0.98431551]
[1768634995779,0.9250274,3293.9,3292.6,0.98431551]
[1768634995981,0.98431551,3294.0,3292.6,0.98431551]
[1768634996273,0.9250274,3293.9,3292.6,0.98431551]
[1768634996478,0.98431551,3294.0,3292.6,0.98431551]
[1768634996681,0.92502787,3293.9,3292.6,0.98431551]
[1768634996890,0.98431551,3294.0,3292.6,0.98431551]
[1768635001297,6.53484865,3294.7,3293.3,0.98431551]
[1768635001485,0.92498466,3294.6,3293.5,0.98431551]
[1768635001794,0.92498466,3294.5,3293.3,0.98431551]
[1768635001996,0.92498466,3294.4,3293.3,0.98431551]
[1768635002195,0.98431551,3294.6,3293.3,0.98431551]
[1768635002396,0.924928,3294.5,3293.3,0.98431551]
[1768635002694,0.924928,3294.4,3293.3,0.98431551]
[1768635002994,0.98431551,3294.6,3293.3,1.12480885]
[1768635003190,0.92492272,3294.5,3293.3,1.12480885]
[1768635003384,0.92492272,3294.4,3293.3,1.12480885]
[1768635003580,0.98431551,3294.6,3293.3,1.12480885]
[1768635003786,0.92411811,3294.5,3293.3,1.12480885]
[1768635003986,0.98431551,3294.6,3293.3,1.12480885]
[1768635004186,0.92411843,3294.5,3293.3,1.12480885]
[1768635004487,0.98431551,3294.6,3293.3,1.12480885]
[1768635016202,0.0024531,3294.8,3293.8,0.98431551]
[1768635029714,0.0024531,3294.8,3293.6,1.11625187]
[1768635030307,0.98431551,3294.7,3293.6,0.13193636]
[1768635031013,0.0024531,3294.8,3293.6,0.13193636]
[1768635031210,0.0024531,3294.8,3293.6,1.11625187]
[1768635031415,0.0024531,3294.8,3293.7,0.13718295]
[1768635060847,0.9242034,3294.7,3293.7,0.13718295]
[1768635061052,0.0024531,3294.8,3293.7,0.13718295]
[1768635061250,0.92420355,3294.7,3293.7,0.13718295]
[1768635061443,0.0024531,3294.8,3293.7,0.13718295]
[1768635081156,0.0024531,3294.8,3293.0,3.9586942]
[1768635081356,0.92314352,3294.7,3293.0,0.14205647]
[1768635081656,0.92314352,3294.6,3293.0,0.14205647]
[1768635081847,0.0024531,3294.8,3293.0,0.14205647]
[1768635082048,0.92302771,3294.7,3293.0,0.14205647]
[1768635082248,0.92302771,3294.6,3293.0,0.14205647]
[1768635082443,0.0024531,3294.8,3293.0,0.14205647]
[1768635082648,0.922916,3294.7,3293.0,0.14205647]
[1768635082856,0.922916,3294.6,3293.0,0.14205647]
[1768635083047,0.0024531,3294.8,3293.0,0.14205647]
[1768635083248,0.92291602,3294.7,3293.0,0.14205647]
[1768635083448,0.92291602,3294.6,3293.0,0.14205647]
[1768635083648,0.92291602,3294.5,3293.0,0.14205647]
[1768635083858,0.0024531,3294.8,3293.0,0.14205647]
[1768635084048,0.92284506,3294.7,3293.0,0.14205647]
[1768635084248,0.92284506,3294.6,3293.0,0.14205647]
[1768635084449,0.92284506,3294.5,3293.0,0.14205647]
[1768635084669,6.3994531,3294.8,3293.0,0.14205647]
[1768635084850,0.92267662,3294.7,3293.0,0.14205647]
[1768635085049,0.92267662,3294.6,3293.0,0.14205647]